Cogmind - Beta 14 @@@ ROGUE MODE // 2024.11.30 @ 14:22:43 Player: Shimmyarah Result: Destroyed by S-43 Plague with Heavy Machine Gun Performance ------------- Evolutions (8) 4000 Regions Visited (18) 3600 Robots Destroyed (70) 350 Value Destroyed (2271) 2271 Prototype IDs (23) 460 Alien Tech Used (0) 0 Bonus (1074) 1074 TOTAL SCORE: 11755 Bonus ------- Follower Combat Kills 74 Entered Garrisons 200 Used RIF Installer 500 Met Data Miner 300 Cogmind --------- Core Integrity 0/1450 Matter 39/300 Energy 100/100 System Corruption 0% Temperature Cool (0) Movement Core (50) Location -2/Research Parts ------- > --- POWER (2) -------- (None) > --- PROPULSION (9) --- (None) > --- UTILITY (8) ------ (None) > --- WEAPON (4) ------- (None) > --- INVENTORY (5) ---- Makeshift Sensor Array Seismic Detector HERF Cannon Improved Proton Missile Launcher Power Maul Peak State ------------ > --- POWER ------------ Fission Core Fission Core > --- PROPULSION ------- Improved Titanium Leg Improved Titanium Leg Armored Huge Wheel > --- UTILITY ---------- Improved Cryofiber Web Advanced Visual Processing Unit Improved Targeting Computer Core Analyzer Advanced ECM Suite > --- WEAPON ----------- Wave Gun Cooled Plasma Cannon KE Penetrator Advanced Assault Cannon > --- INVENTORY -------- Reinforced Deuterium Engine Improved Titanium Leg Trap Scanner Hardened Medium Armor Plating Wave Gun [Rating: 68] Favorites ----------- Power Fission Core Engine Cooled Ion Engine Power Core Fission Core Propulsion Improved Titanium Leg Treads Improved Treads Leg Improved Titanium Leg Wheel Armored Huge Wheel Hover Unit Gravmag System Flight Unit VTOL Module Utility Core Analyzer Device Improved Cryofiber Web Storage Small Storage Unit Processor Core Analyzer Hackware System Shield Protection Hardened Medium Armor Plating Weapon Cooled Plasma Cannon Energy Gun Wave Gun Energy Cannon Cooled Plasma Cannon Ballistic Gun KE Penetrator Ballistic Cannon Battle Cannon Launcher Mini Grenade Launcher Special Weapon Remote Datajack Impact Weapon Makeshift Hammer Slashing Weapon Ripper Special Melee Weapon Improved Datajack Build | -11 -10 -9 -9 -8 -8 -8 -7 -6 -6 -6 -6 -5 -5 -4 -4 -4 -3 -2 ------- Run | Yrd Mat Mat Min Mat Gar Mat Fac Fac Low Low Dat Pro Fac Fac Upp Upp Res Res Slots Evolved 16 | . . 2 . 2 . . 2 2 . . . . 2 2 . . 2 2 Power 1 | . . . . . . . 1 . . . . . . . . . . . Propulsion 7 | . . 2 . . . . . . . . . . 2 1 . . . 2 Utility 6 | . . . . 1 . . 1 1 . . . . . 1 . . 2 . Weapon 2 | . . . . 1 . . . 1 . . . . . . . . . . Parts Attached 170 | 1 8 11 . 13 . 13 29 15 4 9 . 12 7 4 31 . 5 8 Power 14 | . . 1 . 1 . 1 3 2 . 1 . 2 . . 3 . . . Engine 4 | . . 1 . 1 . 1 . . . . . 1 . . . . . . Core 10 | . . . . . . . 3 2 . 1 . 1 . . 3 . . . Reactor . | . . . . . . . . . . . . . . . . . . . Propulsion 47 | . 5 6 . 5 . 3 11 4 . 6 . 3 2 . 1 . 1 . Treads 8 | . 1 . . 1 . . . . . 4 . 2 . . . . . . Leg 12 | . . . . . . . 5 1 . 2 . 1 2 . 1 . . . Wheel 3 | . 2 . . . . . . 1 . . . . . . . . . . Hover 5 | . . . . . . . 3 2 . . . . . . . . . . Flight 19 | . 2 6 . 4 . 3 3 . . . . . . . . . 1 . Utility 48 | 1 2 1 . 1 . 2 5 3 2 . . 4 3 3 14 . 1 6 Device 29 | 1 1 1 . . . 1 1 1 1 . . 2 3 3 10 . 1 3 Storage 1 | . . . . . . . . . . . . 1 . . . . . . Processor 8 | . . . . . . . 3 1 . . . . . . 1 . . 3 Hackware 2 | . . . . 1 . 1 . . . . . . . . . . . . Protection 8 | . 1 . . . . . 1 1 1 . . 1 . . 3 . . . Artifact . | . . . . . . . . . . . . . . . . . . . Weapon 61 | . 1 3 . 6 . 7 10 6 2 2 . 3 2 1 13 . 3 2 Energy Gun 8 | . . 1 . . . 1 3 1 1 . . 1 . . . . . . Energy Cannon 6 | . . . . . . . . 1 1 . . 1 . . 3 . . . Ballistic Gun 7 | . . . . 1 . 2 3 1 . . . . . . . . . . Ballistic Cannon 12 | . . . . . . . . 1 . 2 . . 1 . 7 . 1 . Launcher 9 | . . 2 . . . . 2 1 . . . . . . 2 . 1 1 Special Weapon 1 | . . . . . . . 1 . . . . . . . . . . . Impact Weapon 10 | . 1 . . 3 . 1 . . . . . 1 1 1 . . 1 1 Slashing Weapon 3 | . . . . 1 . . . 1 . . . . . . 1 . . . Piercing Weapon . | . . . . . . . . . . . . . . . . . . . Special Melee Weapon 5 | . . . . 1 . 3 1 . . . . . . . . . . . Unidentified Prototypes 5 | . . 2 . . . 1 . 2 . . . . . . . . . . Parts Lost 75 | . . 1 4 1 7 3 24 1 . 1 . 17 . . 6 . 4 6 Power 10 | . . . . . . . 4 . . 1 . 3 . . . . 1 1 Propulsion 26 | . . . 3 . 4 2 9 . . . . 5 . . 1 . 1 1 Utility 18 | . . . . . 2 1 3 . . . . 4 . . 3 . 2 3 Weapon 21 | . . 1 1 1 1 . 8 1 . . . 5 . . 2 . . 1 Highest Loss Streak 19 | . . 1 4 1 7 3 19 1 . 1 . 9 . . 5 . 4 5 To Critical Strikes . | . . . . . . . . . . . . . . . . . . . Average Slot Usage (%) 71 | . 99 95 97 90 78 79 60 57 93 93 100 85 12 28 42 52 44 35 Engine 2 | . 14 11 11 9 8 9 3 . . . . 4 . . . . . . Core 5 | . . . . . . . 2 2 13 12 13 5 . . 2 10 8 2 Treads 5 | . 5 . . . . . . . . 7 20 20 . . . . . . Leg 5 | . 11 . . . . . 5 13 13 7 6 2 2 5 4 5 4 2 Wheel 1 | . 8 . . . . . . 1 6 4 . . . . . . . . Flight 3 | . 2 43 42 33 28 25 . . . . . . . . . . 3 . Device 10 | . 8 13 22 18 16 16 5 8 10 6 6 5 8 16 20 15 17 9 Processor 10 | . . . . . . . 13 13 20 20 20 13 . . 1 . . 6 Hackware 1 | . . . . 8 8 9 3 . . . . . . . . . . . Protection 3 | . 6 8 . . . . 1 . 2 6 6 7 . . 2 10 9 5 Energy Gun 1 | . 12 2 10 . . 8 2 . 2 . . . . . . . . . Energy Cannon 4 | . . . . . . . . . 10 11 6 7 . . 1 . . . Ballistic Gun 2 | . 14 11 11 8 . 1 2 1 6 1 . . . . . . . . Ballistic Cannon 6 | . . . . . . . . 1 6 12 20 12 1 5 4 10 . 2 Impact Weapon 1 | . 1 . . 6 9 9 3 . . . . 2 . 1 2 . . 2 Peak Build Rating 68 | 8 8 18 18 30 24 30 41 65 68 65 59 61 24 45 58 44 60 51 Average Rating 41 | 6 7 13 17 23 21 24 26 34 65 58 59 50 10 27 37 44 46 35 On Entrance 28 | 6 8 8 18 9 24 4 13 20 65 65 59 59 1 24 29 44 44 33 Naked Turns 230 | . . . . . . . . . . . . 151 7 . 16 . . 56 Heaviest Build 78 | 12 14 15 15 17 13 21 24 54 55 55 49 78 14 23 53 35 32 27 Greatest Support 102 | 20 20 16 16 18 18 15 40 32 28 79 20 102 3 3 20 20 20 20 Greatest Overweight (x) 7 | . 1 . 2 . 3 4 5 1 1 2 2 2 4 7 6 1 1 2 Average Overweight (x) . | . . . . . . . . . 1 1 2 . . 4 . 1 1 . Largest Inventory Capacity 8 | 8 8 5 5 5 5 5 5 5 5 5 5 5 5 5 5 5 5 5 Average Capacity 5 | 8 7 5 5 5 5 5 5 5 5 5 5 5 5 5 5 5 5 5 Most Carried 8 | 8 8 5 5 5 5 5 5 5 5 5 5 5 5 5 5 4 5 5 Average Carried 4 | 7 7 4 5 4 5 4 4 4 4 4 5 4 4 4 4 4 3 4 Final Capacity 8 | 8 5 5 5 5 5 5 5 5 5 5 5 5 5 5 5 5 5 5 Final Carried 8 | 8 5 5 5 5 5 5 5 5 5 5 5 5 5 5 4 4 5 5 Class Distribution -------------------- 31% | Mutant 24% | Gunner 20% | Derelict-Gunner 14% | Derelict-Mutant 8% | Sprinter Dominant Class ---------------- Mutant | -10/Materials Sprinter | -9/Materials Sprinter | -9/Mines Sprinter | -8/Materials Sprinter | -8/Garrison Mutant | -8/Materials Mutant | -7/Factory Mutant | -6/Factory Gunner | -6/Lower Caves Gunner | -6/Lower Caves Derelict-Gunner | -6/Data Miner Derelict-Gunner | -5/Proximity Caves Mutant | -5/Factory Mutant | -4/Factory Derelict-Mutant | -4/Upper Caves Derelict-Mutant | -4/Upper Caves Derelict-Mutant | -3/Research Derelict-Mutant | -2/Research Resources | -11 -10 -9 -9 -8 -8 -8 -7 -6 -6 -6 -6 -5 -5 -4 -4 -4 -3 -2 ----------- Run | Yrd Mat Mat Min Mat Gar Mat Fac Fac Low Low Dat Pro Fac Fac Upp Upp Res Res Matter Collected 2488 | 233 38 49 77 56 . 157 133 295 309 164 . 518 . 168 222 17 . 52 Remotely . | . . . . . . . . . . . . . . . . . . . Salvage Created 2121 | 132 48 49 . 51 . 44 555 279 194 166 . 433 . . 90 17 . 63 Parts 122 | 17 5 10 . 4 . . 30 16 8 11 . 13 . . 4 3 . 1 Haulers Intercepted 1 | . . . . . . . 1 . . . . . . . . . . . Recyclers Shooed . | . . . . . . . . . . . . . . . . . . . Parts Field Recycled . | . . . . . . . . . . . . . . . . . . . Retrieved Matter . | . . . . . . . . . . . . . . . . . . . Parts Self-Destructed 48 | . . . . . . . . . 8 10 . 19 . . 8 3 . . Prevented 1 | . . . . . . . . . . . . 1 . . . . . . Kills | -11 -10 -9 -9 -8 -8 -8 -7 -6 -6 -6 -6 -5 -5 -4 -4 -4 -3 -2 ------- Run | Yrd Mat Mat Min Mat Gar Mat Fac Fac Low Low Dat Pro Fac Fac Upp Upp Res Res Combat Hostiles Destroyed 51 | . 3 . . 1 . . 15 3 3 8 . 11 . . 5 1 . 1 Guns 13 | . 3 . . 1 . . 7 1 1 . . . . . . . . . Cannons 26 | . . . . . . . . . 2 7 . 11 . . 5 1 . . AOE 10 | . . . . . . . 8 1 . . . . . . . . . 1 Classes Destroyed 14 | 2 1 2 . 1 . 1 3 2 . . . 1 . . . . . 1 Worker 5 | . . . . . . . . 4 . . . . . . . . . 1 Builder 1 | . . . . . . 1 . . . . . . . . . . . . Tunneler 7 | 4 . . . . . . . 2 . . . . . . . . . 1 Hauler 1 | . . . . . . . 1 . . . . . . . . . . . Recycler 1 | 1 . . . . . . . . . . . . . . . . . . Operator 1 | . . 1 . . . . . . . . . . . . . . . . Watcher 3 | . . 2 . . . 1 . . . . . . . . . . . . Swarmer 21 | . 3 . . . . . 3 . . 8 . 1 . . 5 1 . . Cutter 1 | . . . . . . . . . . . . . . . . . . 1 Grunt 22 | . . . . . . . 11 2 3 . . 6 . . . . . . Brawler 1 | . . . . . . . . 1 . . . . . . . . . . Sentry 2 | . . . . 1 . . . . . . . 1 . . . . . . Hunter 3 | . . . . . . . 1 . . . . 2 . . . . . . Programmer 1 | . . . . . . . . . . . . 1 . . . . . . Best Kill Streak 7 | 3 2 3 . 1 . 2 7 3 2 4 . 6 . . 5 1 . 1 Combat Bots Only 6 | . 2 . . 1 . . 6 3 2 4 . 6 . . 5 1 . 1 Max Kills in Single Turn 2 | 1 1 1 . 1 . 1 2 1 1 2 . 1 . . 1 1 . 1 Gunslinging . | . . . . . . . . . . . . . . . . . . . Exploded 2 | . . . . . . . 2 1 . . . . . . . . . 1 Melee . | . . . . . . . . . . . . . . . . . . . Uniques/NPCs Destroyed . | . . . . . . . . . . . . . . . . . . . Combat | -11 -10 -9 -9 -8 -8 -8 -7 -6 -6 -6 -6 -5 -5 -4 -4 -4 -3 -2 -------- Run | Yrd Mat Mat Min Mat Gar Mat Fac Fac Low Low Dat Pro Fac Fac Upp Upp Res Res Hostile Shots Fired 995 | . 12 5 40 6 77 52 307 20 21 27 . 195 . . 95 4 26 108 Missed 339 | . 6 4 20 2 24 18 120 3 2 6 . 56 . . 29 1 4 44 Damage Taken 10395 | . 51 15 301 61 503 380 2208 349 373 315 . 2352 . . 1092 49 572 1774 Core 3577 | . 13 . 59 15 234 126 533 76 59 62 . 623 . . 189 . 124 1464 Absorbed by Shields 358 | . . . . . 70 146 130 . . . . . . . 12 . . . Redirected to Shielding 84 | . . . . . . . . . . . . . . . 84 . . . Ignored by Resistances 199 | . . . . . . . . . . . . 199 . . . . . . Core Remaining (%) 67 | 100 94 . 85 . . 31 23 . . . . 3 100 . . 83 90 . Volleys Fired 139 | 12 7 5 5 5 . . 40 4 7 7 . 31 . . 12 3 . 1 Largest 4 | 2 2 2 2 1 . . 2 3 4 4 . 4 . . 4 2 . 1 Hottest 207 | 60 60 76 76 20 . . 46 116 196 202 . 207 . . 198 78 . 46 Shots Fired 298 | 24 14 7 7 5 . 2 46 10 26 28 . 88 . . 34 6 . 1 Gun 109 | 24 14 7 7 5 . 2 37 3 5 3 . 2 . . . . . . Cannon 178 | . . . . . . . . 6 21 25 . 86 . . 34 6 . . Launcher 8 | . . . . . . . 6 1 . . . . . . . . . 1 Special 3 | . . . . . . . 3 . . . . . . . . . . . Kinetic 201 | 12 7 5 5 5 . . 37 6 12 14 . 60 . . 32 6 . . Thermal 82 | 12 7 2 2 . . 2 . 3 14 14 . 26 . . . . . . Explosive 8 | . . . . . . . 6 1 . . . . . . . . . 1 Electromagnetic 4 | . . . . . . . . . . . . 2 . . 2 . . . Robot Hit Streak 14 | 5 4 2 3 8 . . 14 6 10 3 . 10 . . 3 1 . 2 Robot Miss Streak 5 | 5 2 1 1 . . . 3 1 1 5 . 5 . . 5 5 . . Penetration Max . | . . . . . . . . . . . . . . . . . . . Secondary Targets . | . . . . . . . . . . . . . . . . . . . Shots Hit Robots 179 | 12 8 4 5 5 . 5 37 11 11 9 . 55 . . 13 1 . 3 Core Hits 131 | 6 5 3 1 2 . . 37 9 7 7 . 44 . . 6 1 . 3 Critical Kills 2 | . . . . . . . . 1 . 1 . . . . . . . . Critical Parts Destroyed 2 | . . . . . . 1 . . . . . . . . . . . 1 Critical Strikes 7 | . . . . . . 1 . 1 . 2 . . . . 2 . . 1 Meltdown 2 | . . . . . . . . 1 . 1 . . . . . . . . Blast 3 | . . . . . . . . . . 1 . . . . 2 . . . Smash 2 | . . . . . . 1 . . . . . . . . . . . 1 Melee Attacks 26 | . . . . . . 9 7 7 . . . . . 1 . . . 2 Impact 15 | . . . . . . 7 5 . . . . . . 1 . . . 2 Slashing 7 | . . . . . . . . 7 . . . . . . . . . . Piercing . | . . . . . . . . . . . . . . . . . . . Sneak Attacks 11 | . . . . . . 3 . 6 . . . . . . . . . 2 Combat Hostiles . | . . . . . . . . . . . . . . . . . . . Follow-up Attacks . | . . . . . . . . . . . . . . . . . . . Damage Inflicted 5221 | 145 115 56 64 59 2 222 1111 665 317 350 . 1393 . . 327 25 4 366 Guns 1091 | 145 94 56 64 59 . . 539 46 27 38 . 23 . . . . . . Cannons 2392 | . . . . . . . . 68 290 312 . 1370 . . 327 25 . . Explosions 793 | . . . . . . . 538 97 . . . . . . . . . 158 Melee 838 | . . . . . . 219 . 439 . . . . . . . . . 180 Ramming 107 | . 21 . . . 2 3 34 15 . . . . . . . . 4 28 Kinetic 2430 | 80 63 40 32 59 . . 539 46 86 162 . 1000 . . 298 25 . . Thermal 1001 | 65 31 16 32 . . . . 68 231 188 . 370 . . . . . . Explosive 793 | . . . . . . . 538 97 . . . . . . . . . 158 Electromagnetic 52 | . . . . . . . . . . . . 23 . . 29 . . . Impact 399 | . . . . . . 219 . . . . . . . . . . . 180 Slashing 439 | . . . . . . . . 439 . . . . . . . . . . Piercing . | . . . . . . . . . . . . . . . . . . . Highest Corruption 3 | . . . . . 3 3 . . . . . . . . . . . . Average Corruption 3 | . . . . . 3 3 . . . . . . . . . . . . Corruption Purged . | . . . . . . . . . . . . . . . . . . . Corruption Blocked . | . . . . . . . . . . . . . . . . . . . Effects 10 | . . . . . 1 9 . . . . . . . . . . . . Message Errors 2 | . . . . . . 2 . . . . . . . . . . . . Matter Fused 3 | . . . . . 1 2 . . . . . . . . . . . . Energy Discharges 1 | . . . . . . 1 . . . . . . . . . . . . Data Loss (minor) 1 | . . . . . . 1 . . . . . . . . . . . . Misfires 2 | . . . . . . 2 . . . . . . . . . . . . Alerts 1 | . . . . . . 1 . . . . . . . . . . . . Overload Shots . | . . . . . . . . . . . . . . . . . . . Overflow Damage 399 | . . . . . . 94 . 123 . 5 . . . . 3 . . 174 Projectiles 8 | . . . . . . . . . . 5 . . . . 3 . . . Explosions 34 | . . . . . . . . . . . . . . . . . . 34 Melee 357 | . . . . . . 94 . 123 . . . . . . . . . 140 Knockbacks 33 | . 1 . . . . 2 . . . . . 25 . . 3 . . 2 Impact 5 | . 1 . . . . 2 . . . . . . . . . . . 2 Kinetic 28 | . . . . . . . . . . . . 25 . . 3 . . . Secondary . | . . . . . . . . . . . . . . . . . . . Self-Inflicted Damage 104 | . 10 . . . 1 1 4 . . . . . . . . . . 88 Shots 1 | . . . . . . . . . . . . . . . . . . 1 Rammed 16 | . 3 . . . 1 2 2 1 . . . . . . . . . 7 Targets Rammed 32 | . 3 . . . 1 2 13 5 . . . . . . . . 1 7 Kicked 16 | . . . . . . . 11 4 . . . . . . . . 1 . Crushed . | . . . . . . . . . . . . . . . . . . . Highest Temperature 636 | . . 21 20 19 1 18 6 153 613 433 . 636 . . 202 90 . . Average Temperature 212 | . . 10 7 13 1 13 3 69 272 178 . 277 . . 121 47 . . Received Heat Transfer 2554 | . . 9 99 36 132 189 770 153 90 . . 873 . . 113 . 90 . Effects 36 | . . . . . . . . . 5 . . 31 . . . . . . Shutdowns 12 | . . . . . . . . . . . . 12 . . . . . . Energy Bleed 5 | . . . . . . . . . 1 . . 4 . . . . . . Interference 2 | . . . . . . . . . 2 . . . . . . . . . Matter Decay 6 | . . . . . . . . . 1 . . 5 . . . . . . Short Circuit 4 | . . . . . . . . . . . . 4 . . . . . . Damage (minor) 4 | . . . . . . . . . 1 . . 3 . . . . . . Damage (major) 3 | . . . . . . . . . . . . 3 . . . . . . Siege Activations . | . . . . . . . . . . . . . . . . . . . Robots Corrupted 4 | . . . . . . 2 . . . . . . . . . . . 2 Combat Hostiles . | . . . . . . . . . . . . . . . . . . . Parts Fried 5 | . . . . . . 5 . . . . . . . . . . . . Impact Corruptions 12 | . . . . . . 6 . . . . . . . . . . . 6 Robots Melted 2 | . . . . . . . . 1 . 1 . . . . . . . . Combat Hostiles 2 | . . . . . . . . 1 . 1 . . . . . . . . Parts Melted 4 | . . . . . . . . 1 . 2 . 1 . . . . . . Heat Transferred 1736 | 150 75 37 74 . . . . 100 400 300 . 600 . . . . . . Parts Sabotaged . | . . . . . . . . . . . . . . . . . . . Parts Stolen . | . . . . . . . . . . . . . . . . . . . Parts Stripped . | . . . . . . . . . . . . . . . . . . . Power Chain Reactions . | . . . . . . . . . . . . . . . . . . . Alert | -11 -10 -9 -9 -8 -8 -8 -7 -6 -6 -6 -6 -5 -5 -4 -4 -4 -3 -2 ------- Run | Yrd Mat Mat Min Mat Gar Mat Fac Fac Low Low Dat Pro Fac Fac Upp Upp Res Res Peak Influence 463 | 25 149 146 92 72 206 353 463 255 . . . . 97 48 . . 74 339 Initial 226 | . 16 62 56 12 36 70 151 226 . . . . 97 46 . . 59 18 Average 116 | 11 75 89 62 31 100 135 194 166 . . . . 97 46 . . 60 63 Maximum Alert Level 2 | . . . . . 1 1 2 1 . . . . . . . . . 1 Low Security (%) 79 | 100 100 100 100 100 92 75 69 47 . . . . 100 100 . . 100 87 Level 1 19 | . . . . . 7 24 24 52 . . . . . . . . . 12 Level 2 1 | . . . . . . . 5 . . . . . . . . . . . Level 3 . | . . . . . . . . . . . . . . . . . . . Level 4 . | . . . . . . . . . . . . . . . . . . . Level 5 . | . . . . . . . . . . . . . . . . . . . High Security . | . . . . . . . . . . . . . . . . . . . Max Security . | . . . . . . . . . . . . . . . . . . . Squads Dispatched 10 | . . 1 . . . 1 6 . . . . . . 1 . . . 1 Investigation 1 | . . . . . . . 1 . . . . . . . . . . . Extermination 2 | . . . . . . . 1 . . . . . . 1 . . . . Reinforcement 7 | . . 1 . . . 1 4 . . . . . . . . . . 1 Assault . | . . . . . . . . . . . . . . . . . . . Garrison . | . . . . . . . . . . . . . . . . . . . Intercept . | . . . . . . . . . . . . . . . . . . . Searches Triggered . | . . . . . . . . . . . . . . . . . . . Construction Impeded 1 | . . . . . . . 1 . . . . . . . . . . . Haulers Reinforced 1 | . . . . . . . 1 . . . . . . . . . . . Active Scanning Responses . | . . . . . . . . . . . . . . . . . . . Cargo Convoy Interrupts . | . . . . . . . . . . . . . . . . . . . Stealth | -11 -10 -9 -9 -8 -8 -8 -7 -6 -6 -6 -6 -5 -5 -4 -4 -4 -3 -2 --------- Run | Yrd Mat Mat Min Mat Gar Mat Fac Fac Low Low Dat Pro Fac Fac Upp Upp Res Res Distress Signals 8 | . . . . . . . 4 . . . . . . . . . . 4 Communications Jammed . | . . . . . . . . . . . . . . . . . . . Distress Signals . | . . . . . . . . . . . . . . . . . . . Times Spotted 180 | . 9 7 10 5 17 12 33 4 4 8 . 25 . . 15 1 3 27 Peak Tracking Total 12 | . 4 5 11 4 12 6 9 3 3 4 . 7 . 1 5 1 2 9 Tactical Retreats 31 | . 1 . 2 . 3 2 5 . 1 . . 7 . . 3 . . 7 Traps | -11 -10 -9 -9 -8 -8 -8 -7 -6 -6 -6 -6 -5 -5 -4 -4 -4 -3 -2 ------- Run | Yrd Mat Mat Min Mat Gar Mat Fac Fac Low Low Dat Pro Fac Fac Upp Upp Res Res Traps Triggered 6 | . . . . . 4 . . . . . . . . . . . . 2 Indirectly . | . . . . . . . . . . . . . . . . . . . Trap Hack Attempts . | . . . . . . . . . . . . . . . . . . . Triggered . | . . . . . . . . . . . . . . . . . . . Disarmed . | . . . . . . . . . . . . . . . . . . . Reprogrammed . | . . . . . . . . . . . . . . . . . . . Reused . | . . . . . . . . . . . . . . . . . . . Traps Extracted . | . . . . . . . . . . . . . . . . . . . Installed . | . . . . . . . . . . . . . . . . . . . Triggered 3 | . . . . . . . . . . . . 2 . . 1 . . . Machines | -11 -10 -9 -9 -8 -8 -8 -7 -6 -6 -6 -6 -5 -5 -4 -4 -4 -3 -2 ---------- Run | Yrd Mat Mat Min Mat Gar Mat Fac Fac Low Low Dat Pro Fac Fac Upp Upp Res Res Machines Disabled 4 | . . . . . . . 4 . . . . . . . . . . . Max in Single Turn 3 | . . . . . . . 3 . . . . . . . . . . . Garrison Access 2 | . . . . . . . . 1 . . . . . . . . . 1 Machines Repaired . | . . . . . . . . . . . . . . . . . . . Machines Dismantled . | . . . . . . . . . . . . . . . . . . . Machines Sabotaged . | . . . . . . . . . . . . . . . . . . . Overloaded Fab Kills . | . . . . . . . . . . . . . . . . . . . Hacking | -11 -10 -9 -9 -8 -8 -8 -7 -6 -6 -6 -6 -5 -5 -4 -4 -4 -3 -2 --------- Run | Yrd Mat Mat Min Mat Gar Mat Fac Fac Low Low Dat Pro Fac Fac Upp Upp Res Res Machines Accessed 34 | . 2 3 1 4 . 5 5 3 3 . 4 . . . 2 . . 2 Terminals 14 | . 1 1 1 3 . 4 4 . . . . . . . . . . . Fabricators 1 | . . . . . . . . 1 . . . . . . . . . . Repair Stations 4 | . 1 1 . . . 1 . . . . . . . . . . . 1 Recycling Units 3 | . . 1 . . . . 1 1 . . . . . . . . . . Scanalyzers . | . . . . . . . . . . . . . . . . . . . Garrison Access 3 | . . . . 1 . . . 1 . . . . . . . . . 1 Total Hacks 123 | . 6 14 3 13 . 19 12 7 9 . 31 . . . 6 . . 3 Successful 85 | . 2 7 1 8 . 10 5 4 9 . 31 . . . 6 . . 2 Failed 38 | . 4 7 2 5 . 9 7 3 . . . . . . . . . 1 Catastrophic 7 | . 1 . . 1 . 2 3 . . . . . . . . . . . Database Lockouts . | . . . . . . . . . . . . . . . . . . . Manual 28 | . 2 6 3 5 . 10 2 . . . . . . . . . . . Terminals 50 | . 4 6 3 11 . 17 9 . . . . . . . . . . . Fabricators 2 | . . . . . . . . 2 . . . . . . . . . . Repair Stations 8 | . 2 3 . . . 2 . . . . . . . . . . . 1 Recycling Units 11 | . . 5 . . . . 3 3 . . . . . . . . . . Scanalyzers . | . . . . . . . . . . . . . . . . . . . Garrison Access 6 | . . . . 2 . . . 2 . . . . . . . . . 2 Terminal Hacks 67 | . 1 3 1 4 . 8 4 . 9 . 31 . . . 6 . . . Record 23 | . . . . . . . . . 7 . 11 . . . 5 . . . Part Schematic 11 | . . . . . . 2 . . . . 9 . . . . . . . Robot Schematic 8 | . . . . . . . . . . . 8 . . . . . . . Prototype ID Bank 7 | . . . . 2 . 1 1 . . . 3 . . . . . . . Open Door 3 | . . . . . . . . . 2 . . . . . 1 . . . Open DSF 1 | . . . . . . . 1 . . . . . . . . . . . Terminal Index 2 | . . . . 1 . 1 . . . . . . . . . . . . Recycling Unit Index 1 | . . 1 . . . . . . . . . . . . . . . . Locate Traps 1 | . . . . . . . 1 . . . . . . . . . . . Maintenance Status 1 | . . . . . . 1 . . . . . . . . . . . . Security Status 1 | . . . . . . . 1 . . . . . . . . . . . Hauler Manifests 3 | . . 1 . 1 . 1 . . . . . . . . . . . . Registered Components 2 | . 1 . . . . 1 . . . . . . . . . . . . Zone Layout 3 | . . 1 1 . . 1 . . . . . . . . . . . . Fabricator Hacks 1 | . . . . . . . . 1 . . . . . . . . . . Build 1 | . . . . . . . . 1 . . . . . . . . . . Repair Station Hacks 1 | . . . . . . 1 . . . . . . . . . . . . Refit 1 | . . . . . . 1 . . . . . . . . . . . . Recycling Unit Hacks 3 | . . 1 . . . . 1 1 . . . . . . . . . . Retrieve Components 3 | . . 1 . . . . 1 1 . . . . . . . . . . Scanalyzer . | . . . . . . . . . . . . . . . . . . . Garrison Access Hacks 6 | . . . . 2 . . . 2 . . . . . . . . . 2 Unlock Access 1 | . . . . 1 . . . . . . . . . . . . . . Seal Access 2 | . . . . . . . . 1 . . . . . . . . . 1 Coupler Status 3 | . . . . 1 . . . 1 . . . . . . . . . 1 Unauthorized Hacks 7 | . 1 3 . 2 . 1 . . . . . . . . . . . . Terminals 3 | . . . . 2 . 1 . . . . . . . . . . . . Assimilate 1 | . . . . . . 1 . . . . . . . . . . . . Botnet 1 | . . . . 1 . . . . . . . . . . . . . . Operators 1 | . . . . 1 . . . . . . . . . . . . . . Fabricators . | . . . . . . . . . . . . . . . . . . . Repair Stations 1 | . 1 . . . . . . . . . . . . . . . . . Mechanics 1 | . 1 . . . . . . . . . . . . . . . . . Recycling Units 3 | . . 3 . . . . . . . . . . . . . . . . Monitor 1 | . . 1 . . . . . . . . . . . . . . . . Reject 1 | . . 1 . . . . . . . . . . . . . . . . Recyclers 1 | . . 1 . . . . . . . . . . . . . . . . Scanalyzers . | . . . . . . . . . . . . . . . . . . . Garrison Access . | . . . . . . . . . . . . . . . . . . . Data Cores Recovered . | . . . . . . . . . . . . . . . . . . . Used . | . . . . . . . . . . . . . . . . . . . Hacking Detections 18 | . 1 2 1 3 . 5 3 2 . . . . . . . . . 1 Full Trace Events 1 | . . . . . . . 1 . . . . . . . . . . . Feedback Events . | . . . . . . . . . . . . . . . . . . . Feedback Blocked . | . . . . . . . . . . . . . . . . . . . Robot Schematics Acquired 8 | . . . . . . . . . . . 8 . . . . . . . Robots Built . | . . . . . . . . . . . . . . . . . . . Authchips . | . . . . . . . . . . . . . . . . . . . Time . | . . . . . . . . . . . . . . . . . . . Total Robot Build Rating . | . . . . . . . . . . . . . . . . . . . Part Schematics Acquired 11 | . . . . . . 2 . . . . 9 . . . . . . . Parts Built 2 | . . . . . . . . 2 . . . . . . . . . . Authchips . | . . . . . . . . . . . . . . . . . . . Time 42 | . . . . . . . . 42 . . . . . . . . . . Total Part Build Rating 16 | . . . . . . . . 16 . . . . . . . . . . Parts Repaired . | . . . . . . . . . . . . . . . . . . . Time . | . . . . . . . . . . . . . . . . . . . Parts Recycled . | . . . . . . . . . . . . . . . . . . . Recycled Matter . | . . . . . . . . . . . . . . . . . . . Retrieved Matter . | . . . . . . . . . . . . . . . . . . . Retrieved Components 6 | . . 1 . . . . 3 2 . . . . . . . . . . Parts Scanalyzed . | . . . . . . . . . . . . . . . . . . . Part Schematics Acquired . | . . . . . . . . . . . . . . . . . . . Parts Damaged . | . . . . . . . . . . . . . . . . . . . Bothacking | -11 -10 -9 -9 -8 -8 -8 -7 -6 -6 -6 -6 -5 -5 -4 -4 -4 -3 -2 ------------ Run | Yrd Mat Mat Min Mat Gar Mat Fac Fac Low Low Dat Pro Fac Fac Upp Upp Res Res Used RIF Installer 1 | . . . . . 1 . . . . . . . . . . . . . Robots Hacked 2 | . . . . . . 1 1 . . . . . . . . . . . Non-combat 1 | . . . . . . . 1 . . . . . . . . . . . Combat 1 | . . . . . . 1 . . . . . . . . . . . . Robot Hacks Applied 2 | . . . . . . 1 1 . . . . . . . . . . . parse_system 1 | . . . . . . 1 . . . . . . . . . . . . no_distress 1 | . . . . . . . 1 . . . . . . . . . . . Relay Couplers Released . | . . . . . . . . . . . . . . . . . . . Fabnet Peak Effective % . | . . . . . . . . . . . . . . . . . . . Robots Rewired . | . . . . . . . . . . . . . . . . . . . Allies Hacked . | . . . . . . . . . . . . . . . . . . . Hacks Repelled . | . . . . . . . . . . . . . . . . . . . Allies | -11 -10 -9 -9 -8 -8 -8 -7 -6 -6 -6 -6 -5 -5 -4 -4 -4 -3 -2 -------- Run | Yrd Mat Mat Min Mat Gar Mat Fac Fac Low Low Dat Pro Fac Fac Upp Upp Res Res Total Allies 4 | . . . 3 . . . . . . . . 1 . . . . . . Largest Group 3 | . . . 3 2 . . . . . . . 1 . . . . . . Highest-Rated Group 96 | . . . 40 24 . . . . . . . 96 . . . . . . Highest-Rated Ally 96 | . . . 16 16 . . . . . . . 96 . . . . . . Total Orders 6 | . . . . 3 . . . . . . . . . . . . 3 . STAY 2 | . . . . 2 . . . . . . . . . . . . . . ROAM 1 | . . . . . . . . . . . . . . . . . 1 . FOLLOW 1 | . . . . 1 . . . . . . . . . . . . . . RETURN 2 | . . . . . . . . . . . . . . . . . 2 . Ally Attacks 21 | . . . 6 9 . . . . . . . 6 . . . . . . Total Damage 378 | . . . 55 100 . . . . . . . 223 . . . . . . Kills 2 | . . . . . . . . . . . . 2 . . . . . . Allies Corrupted . | . . . . . . . . . . . . . . . . . . . Allies Melted 1 | . . . . . . . . . . . . 1 . . . . . . Intel | -11 -10 -9 -9 -8 -8 -8 -7 -6 -6 -6 -6 -5 -5 -4 -4 -4 -3 -2 ------- Run | Yrd Mat Mat Min Mat Gar Mat Fac Fac Low Low Dat Pro Fac Fac Upp Upp Res Res Robot Analysis Total . | . . . . . . . . . . . . . . . . . . . Derelict Logs Recovered 7 | . . . 2 . . . . . 1 1 . 2 . . 1 . . . Drone Launches 3 | . . . . . . . . . . . . . . . . . 3 . Drone Recoveries 3 | . . . . . . . . . . . . . . . . . 3 . Exploration | -11 -10 -9 -9 -8 -8 -8 -7 -6 -6 -6 -6 -5 -5 -4 -4 -4 -3 -2 ------------- Run | Yrd Mat Mat Min Mat Gar Mat Fac Fac Low Low Dat Pro Fac Fac Upp Upp Res Res Turns Passed 8955 | 77 251 118 182 170 202 361 768 765 1196 789 370 1477 82 270 1118 93 121 545 Spaces Moved 7251 | 22 188 282 515 322 279 472 570 482 1003 578 138 997 97 94 670 41 48 453 Core 1103 | . . . . . 19 3 39 . . . . 286 97 94 288 . . 277 Treads 679 | . 5 . . . . . . . . 11 . 663 . . . . . . Legs 1504 | 22 49 . . . . . 231 323 . 46 138 48 . . 382 41 48 176 Wheels 1750 | . 117 . . . . . . 109 1003 521 . . . . . . . . Hover 331 | . . . . . . . 281 50 . . . . . . . . . . Flight 1884 | . 17 282 515 322 260 469 19 . . . . . . . . . . . Fastest Speed 26 | 120 95 26 26 26 26 29 29 97 115 115 270 50 50 250 50 210 210 50 Average Speed 106 | 120 105 29 26 26 33 63 102 123 115 128 270 134 68 277 147 210 210 112 Slowest Speed 400 | 120 160 32 195 50 200 250 300 200 115 270 270 270 250 400 350 210 210 210 Overloaded Moves . | . . . . . . . . . . . . . . . . . . . Propulsion Burnouts . | . . . . . . . . . . . . . . . . . . . Robots Hopped 15 | . . 3 . 2 3 4 3 . . . . . . . . . . . Cave-ins Triggered . | . . . . . . . . . . . . . . . . . . . Exploration Rate (%) 35 | 3 42 31 83 24 47 42 14 8 78 64 79 77 3 2 56 6 5 18 Regions Visited 18 Branch Regions 7 Pre-discovered Areas 4 | . . . . . . . . . . . 1 2 . . 1 . . . Known Exits Taken 3 | . . . . 1 . 1 . . . . . . 1 . . . . . Unknown Exits Taken 14 | 1 1 1 1 . . . 1 1 1 1 1 1 . 1 1 1 1 . Scrap Searched 16 | . . . . . . . . . 3 8 . 2 . . 3 . . . Spaces Dug 9 | . . . . . . 1 4 . 3 . . . . 1 . . . . Terrain Destroyed 92 | . . . . . . 1 42 7 7 4 . 12 . 1 2 1 . 15 Melee 6 | . . . . . . 1 4 . . . . . . 1 . . . . Projectile 28 | . . . . . . . . 2 7 4 . 12 . . 2 1 . . AOE 58 | . . . . . . . 38 5 . . . . . . . . . 15 Terrain Rammed . | . . . . . . . . . . . . . . . . . . . Walls Destroyed . | . . . . . . . . . . . . . . . . . . . Machines Disabled . | . . . . . . . . . . . . . . . . . . . Actions | -11 -10 -9 -9 -8 -8 -8 -7 -6 -6 -6 -6 -5 -5 -4 -4 -4 -3 -2 --------- Run | Yrd Mat Mat Min Mat Gar Mat Fac Fac Low Low Dat Pro Fac Fac Upp Upp Res Res Total 8186 | 48 229 309 551 398 382 523 685 628 1029 608 137 1072 114 106 770 43 70 484 Wait 357 | 12 5 . 32 45 47 7 21 105 8 5 . 18 6 . 35 . 11 . Move 7203 | 21 187 275 514 318 271 463 563 481 1002 577 137 996 96 93 669 40 47 453 Hop 14 | . . 3 . 1 3 4 3 . . . . . . . . . . . Pick Up 90 | 2 9 4 . 7 . 12 5 7 3 3 . 11 3 3 14 . 2 5 Fast Attach 69 | 1 . 3 . 6 . 2 24 6 2 5 . . 2 3 13 . . 2 Attach 67 | . 3 4 . 5 . 9 3 5 . 1 . 9 5 1 12 . 5 5 Detach 16 | . . 2 . 1 . 3 . . . . . . 2 . 2 . 4 2 Swap 35 | . 5 5 . 2 . 2 2 4 2 3 . 3 . . 6 . . 1 Drop 79 | . 10 8 . 8 1 10 4 4 5 7 . 4 . 5 7 . . 6 Fire 139 | 12 7 5 5 5 . . 40 4 7 7 . 31 . . 12 3 . 1 Melee 26 | . . . . . . 9 7 7 . . . . . 1 . . . 2 Ram 16 | . 3 . . . 1 2 2 1 . . . . . . . . . 7 Kick 16 | . . . . . . . 11 4 . . . . . . . . 1 . Crush . | . . . . . . . . . . . . . . . . . . . Escape Stasis 59 | . . . . . 59 . . . . . . . . . . . . . Rewire . | . . . . . . . . . . . . . . . . . . . Trap . | . . . . . . . . . . . . . . . . . . . Miscellaneous . | . . . . . . . . . . . . . . . . . . . Route ------- -11/Scrapyard -10/Materials (discovered 2 exits: *Mat / [*Min]) -9/Materials -9/Mines (discovered 2 exits: *Mat x2) -8/Materials (discovered 2 exits: Fac / Gar) -8/Garrison -8/Materials -7/Factory -6/Factory -6/Lower Caves -6/Lower Caves -6/Data Miner -5/Proximity Caves -5/Factory (discovered 3 exits: *Fac x2 / Upp) -4/Factory -4/Upper Caves -4/Upper Caves -3/Research -2/Research History --------- Turn | Location | Event 20 | -11/Scrapyard | Discovered new exit (range 3) 78 | -11/Scrapyard | Entered Materials 112 | -10/Materials | Discovered new exit (range 15) 277 | -10/Materials | Discovered new exit (range 16) 329 | -10/Materials | Entered another Materials area 329 | -9/Materials | Evolved 2 slots: Propulsion x2 395 | -9/Materials | Discovered new exit (range 16) 447 | -9/Materials | Entered Mines 450 | -9/Mines | Learned 2 Materials zone layouts 468 | -9/Mines | Met a Derelict bent on vengeance 514 | -9/Mines | Assembled infested the area 519 | -9/Mines | Assisted by a Guerilla fighting off Assembled 582 | -9/Mines | Discovered new exit (range 11) 585 | -9/Mines | Discovered new exit (range 8) 588 | -9/Mines | Assisted by bots powering up and referring to "LRC-V3" 592 | -9/Mines | Build established: Sprinter 595 | -9/Mines | Learned Materials emergency access door positions 629 | -9/Mines | Entered Materials 629 | -8/Materials | Accompanied by 2 allies 629 | -8/Materials | Evolved 2 slots: Utility x1, Weapon x1 630 | -8/Materials | Identified exit to Factory 651 | -8/Materials | Lost 4 parts (3n1w) 798 | -8/Materials | Identified exit to Garrison 799 | -8/Materials | Entered Garrison 815 | -8/Garrison | Installed Relay Interface Framework 829 | -8/Garrison | Triggered checkpoint 899 | -8/Garrison | Triggered checkpoint 923 | -8/Garrison | Discovered new exit (range 12) 979 | -8/Garrison | Triggered checkpoint 1001 | -8/Garrison | Entered Materials 1014 | -8/Materials | Lost 7 parts (4n2u1w) 1331 | -8/Materials | Core integrity fell below 50% 1334 | -8/Materials | Discovered exit to Factory (range 16) 1362 | -8/Materials | Entered Factory 1362 | -7/Factory | Evolved 2 slots: Power x1, Utility x1 1383 | -7/Factory | Lost 3 parts (2n1u) 1602 | -7/Factory | Build established: Mutant 1860 | -7/Factory | Core integrity fell below 50% 1883 | -7/Factory | Lost 19 parts (3p8n2u6w) 2070 | -7/Factory | Discovered new exit (range 13) 2086 | -7/Factory | Lost 4 parts (1n1u2w) 2130 | -7/Factory | Entered another Factory area 2130 | -6/Factory | Evolved 2 slots: Utility x1, Weapon x1 2168 | -6/Factory | Spotted B-75 Beast 2289 | -6/Factory | Fabricated Cmb. Antigrav System (x2) 2835 | -6/Factory | Discovered new exit (range 6) 2895 | -6/Factory | Entered Lower Caves 3039 | -6/Lower Caves | Build established: Gunner 3365 | -6/Lower Caves | Learned location of 1 exit from Factory 3365 | -6/Lower Caves | Learned Extension trap positions 3365 | -6/Lower Caves | Learned Extension security intel 3365 | -6/Lower Caves | Learned Factory garrison access intel 3365 | -6/Lower Caves | Learned Research garrison access intel 3394 | -6/Lower Caves | Discovered new exit (range 13) 4091 | -6/Lower Caves | Entered another Lower Caves area 4608 | -6/Lower Caves | Learned 8 Factory zone layouts 4635 | -6/Lower Caves | Discovered new exit (range 19) 4880 | -6/Lower Caves | Entered Data Miner 4880 | -6/Data Miner | Discovered new exit (range 6) 4921 | -6/Data Miner | Met Data Miner 5025 | -6/Data Miner | Build established: Derelict-Gunner 5040 | -6/Data Miner | Learned location of Section 7 (-3) 5040 | -6/Data Miner | Acquired the access code to Warlord's prototype stash 5102 | -6/Data Miner | Received God Mode back door access code from Data Miner 5250 | -6/Data Miner | Entered Proximity Caves 5374 | -5/Proximity Caves | Attracted the attention of an 0b10 checkpoint 6227 | -5/Proximity Caves | Lost 3 parts (1p1n1u) 6572 | -5/Proximity Caves | Released all parts (6) 6573 | -5/Proximity Caves | Core integrity fell below 50% 6591 | -5/Proximity Caves | Escorted by Enhanced Grunt 6602 | -5/Proximity Caves | Lost 9 parts (1p4n1u3w) 6612 | -5/Proximity Caves | Core integrity fell below 20% 6655 | -5/Proximity Caves | Learned location of Armory (-3) 6723 | -5/Proximity Caves | Discovered new exit (range 7) 6727 | -5/Proximity Caves | Entered Factory 6727 | -5/Factory | Evolved 2 slots: Propulsion x2 6728 | -5/Factory | Identified exit to Upper Caves 6729 | -5/Factory | Identified exit to Factory 6731 | -5/Factory | Loaded intel: 4 garrison access locations 6809 | -5/Factory | Entered another Factory area 6809 | -4/Factory | Evolved 2 slots: Propulsion x1, Utility x1 6868 | -4/Factory | Build established: Mutant 7042 | -4/Factory | Discovered new exit (range 10) 7079 | -4/Factory | Entered Upper Caves 7187 | -4/Upper Caves | Learned location of Quarantine (-3) 7205 | -4/Upper Caves | Learned Armory emergency access door positions 7205 | -4/Upper Caves | Learned Extension security intel 7497 | -4/Upper Caves | Build established: Derelict-Mutant 7608 | -4/Upper Caves | Attracted the attention of an 0b10 outpost 7620 | -4/Upper Caves | Released all parts (11) 8111 | -4/Upper Caves | Lost 5 parts (3u2w) 8186 | -4/Upper Caves | Discovered new exit (range 5) 8197 | -4/Upper Caves | Entered another Upper Caves area 8257 | -4/Upper Caves | Discovered new exit (range 5) 8290 | -4/Upper Caves | Entered Research 8290 | -3/Research | Evolved 2 slots: Utility x2 8291 | -3/Research | Loaded intel: 4 garrison access locations 8364 | -3/Research | Discovered new exit (range 15) 8411 | -3/Research | Entered another Research area 8411 | -2/Research | Evolved 2 slots: Propulsion x2 8440 | -2/Research | Lost 4 parts (1p1n2u) 8860 | -2/Research | Lost 5 parts (1p1n3u) 8924 | -2/Research | Core integrity fell below 50% 8943 | -2/Research | Core integrity fell below 20% 8956 | -2/Research | Destroyed by S-43 Plague with Heavy Machine Gun Last Messages --------------- 08910_ ALERT: Suspicious intruders detected, dispatching Cutter reinforcements to area. 08918_ U-05 Engineer lays Concrete. 08918_ Slammed into S-43 Plague. 08919_ U-05 Engineer lays Concrete. 08920_ U-05 Engineer destroyed. 08920_ U-05 Engineer lays Concrete. 08921_ K-01 Serf collects debris. 08922_ U-05 Engineer lays Concrete. 08923_ K-01 Serf destroyed. 08923_ K-01 Serf collects debris. 08924_ Acquired 20 matter. 08950_ Acquired Smartbomb Launcher. Guided weapons can set waypoints, but cannot fire with other weapons in the same volley. 08953_ C-57 Dissector destroyed. 08953_ Destroyed Adv. Surge Thruster. 08953_ Smartbomb Launcher destroyed. 08953_ Destroyed Smartbomb Launcher. 08955_ Slammed into C-57 Dissector. Map ----- +----------------------------------------------------+ | | | | | | | | | | | | | | | | | | | | | | | | | | | | | ???????????????????????????????????????????? | | ???????????????????????????????????????????? | | ???????????????????????????????????????????? | | ???????????????????????????????????????????? | | ???????????????????????????????????????????? | | ??????????????????????######???????????????? | | ???????????????????#### # #####???????????? | | ???????????????????# * #???????????? | | ???????????????????# #???????????? | | ???????????????????# #???????????? | | ???????????????????# c #???????????? | | ???????????????????# %@ #???????????? | | ???????????????????## ] #???????????? | | ???????????????????# ! #???????????? | | ???????????????????## #???????????? | | ????????????????????### ss #???????????? | | ??????????????????????### #s####???????????? | | ???????????????????????# s #???????????? | | ???????????????????????# #???????????? | | ???????????????????????# #???????????? | | ??????????????? ??????# #???????????? | | ???????????????? ????# ####???????????? | | ???????????????? """??# #??????????????? | | ???????????????? """" # #??????????????? | | ???????????????? """" + #??????????????? | | ??????????????? """ # #??????????????? | | ?????????????? ??# #??????????????? | | ?????????????# ????# #??????????????? | | ?????????????####??????# #??????????????? | | ???????????????????????# #??????????????? | | ???????????????????????# ###+####???????? | | ???????????????????????# #???????? | | ???????????????????????+ #???????? | | ???????????????????????# #???????? | | ???????????????????????# #???????? | | ???????????????????????# ######+#???????? | +----------------------------------------------------+ Best States ------------- Heat Dissipation 49 Energy Generation 31 Energy Capacity 705 Matter Stores 300 Matter Capacity 300 Sight Range 20 Robot Scan Range 19 Terrain Scan Range 16 Terrain Scan Density 210 ECM Strength 2 Base Temperature (-) 150 Armor Coverage 450 Resistance: KI 30 Utility Shielding 33 Weapon Shielding 66 Evasion (%) 64 Targeting Accuracy 6 Melee Accuracy 24 Core Analysis 6 Recoil Reduction 4 Particle Charging 20 Kinecelleration 40 Offensive Hacking 10 Defensive Hacking 10 Authchip Count 1 Item Schematics ----------------- Reaction Control System | -8/Materials | Hacked Seismic Detector | -8/Materials | Hacked Combat Drone Bay | -6/Data Miner | Free Lgt. Regenerative Plating | -6/Data Miner | Free Enh. Armored Leg | -6/Data Miner | Free Imp. Energy Well | -6/Data Miner | Free Tiamat Missile Launcher | -6/Data Miner | Free Hvy. Siege Treads | -6/Data Miner | Free Adv. Transmission Jammer | -6/Data Miner | Free Phase Gun | -6/Data Miner | Free Tesla Rifle | -6/Data Miner | Free Robot Schematics ------------------ I-47 Archangel | -6/Data Miner | Free L-41 Fighter | -6/Data Miner | Free X-72 Disruptor | -6/Data Miner | Free A-15 Conveyor | -6/Data Miner | Free M-22 Extractor | -6/Data Miner | Free H-66 Slayer | -6/Data Miner | Free R-10 Processor | -6/Data Miner | Free X-77 Beamer | -6/Data Miner | Free Fabricated ------------ Cmb. Antigrav System | x2 | -6/Factory | Preloaded Alien Tech Used ----------------- None Achievements -------------- Streaker The Oracle Challenges ------------ None Game ------ Seed LegDisruptorCleaver Manual? 0 Play Time 01:49:16 Cumulative 80.4 hours Start 2024.11.30 @ 12:15:05 End 2024.11.30 @ 14:22:43 Sessions 1 Manual Loads 0 Difficulty Rogue Special Mode None Game No. 119 Rogue 119 Adventurer 0 Explorer 0 Win Type - Total 0 Types 0/0/0/0/0/0/0/0/0 Lore% 54 Gallery% 43 Achievement% 32 Wizard Run 0 Options --------- Layout 1 ASCII 0 Keyboard 0 Movement Mouse Keybinds 0 Fullscreen 1 Font 24/Smallcaps Map View 50x40 Zoom Use 0% Tactical HUD 1 Map Filters NONE Filters NONE Steam 1 RUN: bac4913a-eb20-426d-9af3-adce55df1cf3